[Event "Titled Tuesday Blitz August 22 Early 2023"]
[White "Rakhimzhan_Alen"]
[Black "Avazkhonov, Alikhon"]
[BlackFideId "14208504"]
[WhiteElo "2658"]
[BlackElo "2393"]
[Result "1-0"]
[Round "1"]
[TimeControl "180+1"]
[Date "2023.08.22"]
[WhiteClock "0:00:25"]
[BlackClock "0:00:00"]
[Board "126"]

1. Nf3 {[%clk 0:03:00]}  d5 {[%clk 0:02:56]} 2. g3 {[%clk 0:02:59]}  c6 {[%clk 0:02:57]} 3. Bg2 {[%clk 0:03:00]}  Bg4 {[%clk 0:02:58]} 4. c4 {[%clk 0:02:56]}  Nf6 {[%clk 0:02:56]} 5. cxd5 {[%clk 0:02:48]}  cxd5 {[%clk 0:02:57]} 6. Ne5 {[%clk 0:02:47]}  Bf5 {[%clk 0:02:56]} 7. Nc3 {[%clk 0:02:44]}  Nbd7 {[%clk 0:02:53]} 8. Qa4 {[%clk 0:02:41]}  e6 {[%clk 0:02:53]} 9. g4 {[%clk 0:02:38]}  Bg6 {[%clk 0:02:51]} 10. h4 {[%clk 0:02:35]}  Bd6 {[%clk 0:02:09]} 11. Nxd7 {[%clk 0:02:25]}  Qxd7 {[%clk 0:02:10]} 12. Qxd7+ {[%clk 0:02:19]}  Kxd7 {[%clk 0:02:11]} 13. h5 {[%clk 0:02:19]}  d4 {[%clk 0:02:05]} 14. Nb5 {[%clk 0:01:50]}  Be4 {[%clk 0:01:56]} 15. Bxe4 {[%clk 0:01:37]}  Nxe4 {[%clk 0:01:57]} 16. d3 {[%clk 0:01:26]}  Nf6 {[%clk 0:00:58]} 17. g5 {[%clk 0:01:23]}  Nd5 {[%clk 0:00:49]} 18. Nxd4 {[%clk 0:01:22]}  Rac8 {[%clk 0:00:49]} 19. a3 {[%clk 0:01:08]}  Be5 {[%clk 0:00:18]} 20. Nf3 {[%clk 0:01:04]}  Bb8 {[%clk 0:00:15]} 21. O-O {[%clk 0:00:51]}  Rc2 {[%clk 0:00:14]} 22. Nd4 {[%clk 0:00:45]}  Rc5 {[%clk 0:00:12]} 23. e3 {[%clk 0:00:44]}  Nb6 {[%clk 0:00:06]} 24. e4 {[%clk 0:00:34]}  Be5 {[%clk 0:00:04]} 25. Nf3 {[%clk 0:00:31]}  Bc7 {[%clk 0:00:05]} 26. Be3 {[%clk 0:00:31]}  Rc2 {[%clk 0:00:05]} 27. Bd4 {[%clk 0:00:27]}  f6 {[%clk 0:00:03]} 28. Rfc1 {[%clk 0:00:24]}  Rxc1+ {[%clk 0:00:00]} 29. Rxc1 {[%clk 0:00:25]} 1-0


[Site "https://www.chess.com"]

[Event "Titled Tuesday Blitz August 22 Early 2023"]
[White "Khumalo, Keith"]
[Black "Polaczek, Richard"]
[WhiteFideId "14319470"]
[BlackFideId "200026"]
[WhiteElo "2651"]
[BlackElo "2391"]
[Result "0-1"]
[Round "1"]
[TimeControl "180+1"]
[Date "2023.08.22"]
[WhiteClock "0:01:47"]
[BlackClock "0:00:50"]
[Board "128"]

1. Nf3 {[%clk 0:02:59]}  d5 {[%clk 0:02:58]} 2. g3 {[%clk 0:02:59]}  Bg4 {[%clk 0:02:56]} 3. Ne5 {[%clk 0:02:59]}  Bf5 {[%clk 0:02:52]} 4. Bg2 {[%clk 0:02:59]}  Nd7 {[%clk 0:02:42]} 5. Nf3 {[%clk 0:02:59]}  e6 {[%clk 0:02:39]} 6. O-O {[%clk 0:02:57]}  Ngf6 {[%clk 0:02:38]} 7. d3 {[%clk 0:02:57]}  c6 {[%clk 0:02:38]} 8. Nbd2 {[%clk 0:02:57]}  Be7 {[%clk 0:02:35]} 9. Qe1 {[%clk 0:02:58]}  O-O {[%clk 0:02:29]} 10. e4 {[%clk 0:02:58]}  Bg6 {[%clk 0:02:29]} 11. Nh4 {[%clk 0:02:58]}  Bc5 {[%clk 0:02:13]} 12. Nxg6 {[%clk 0:02:54]}  hxg6 {[%clk 0:02:12]} 13. Nb3 {[%clk 0:02:55]}  Bb6 {[%clk 0:02:08]} 14. Bg5 {[%clk 0:02:50]}  Qb8 {[%clk 0:01:56]} 15. Qe2 {[%clk 0:02:47]}  Nh7 {[%clk 0:01:50]} 16. Bf4 {[%clk 0:02:44]}  Bc7 {[%clk 0:01:47]} 17. Bd2 {[%clk 0:02:42]}  a5 {[%clk 0:01:44]} 18. a4 {[%clk 0:02:38]}  Bb6 {[%clk 0:01:43]} 19. Kh1 {[%clk 0:02:34]}  dxe4 {[%clk 0:01:28]} 20. dxe4 {[%clk 0:02:34]}  e5 {[%clk 0:01:28]} 21. f4 {[%clk 0:02:33]}  Nhf6 {[%clk 0:01:25]} 22. f5 {[%clk 0:02:31]}  gxf5 {[%clk 0:01:24]} 23. exf5 {[%clk 0:02:31]}  e4 {[%clk 0:01:23]} 24. Bf4 {[%clk 0:02:28]}  Bc7 {[%clk 0:01:22]} 25. Bxc7 {[%clk 0:02:26]}  Qxc7 {[%clk 0:01:21]} 26. g4 {[%clk 0:02:25]}  Rfe8 {[%clk 0:01:20]} 27. g5 {[%clk 0:02:24]}  Nd5 {[%clk 0:01:20]} 28. Rae1 {[%clk 0:02:19]}  Qe5 {[%clk 0:01:18]} 29. c3 {[%clk 0:02:17]}  e3 {[%clk 0:01:07]} 30. Nd4 {[%clk 0:02:14]}  Nc5 {[%clk 0:01:01]} 31. Qg4 {[%clk 0:02:10]}  Ne4 {[%clk 0:00:59]} 32. Rf3 {[%clk 0:01:56]}  Nf2+ {[%clk 0:00:56]} 33. Rxf2 {[%clk 0:01:56]}  exf2 {[%clk 0:00:56]} 34. Rxe5 {[%clk 0:01:57]}  Rxe5 {[%clk 0:00:55]} 35. Nf3 {[%clk 0:01:51]}  Re1+ {[%clk 0:00:51]} 36. Bf1 {[%clk 0:01:48]}  Rxf1+ {[%clk 0:00:50]} 37. Kg2 {[%clk 0:01:47]}  Ne3+ {[%clk 0:00:50]} 0-1


[Site "https://www.chess.com"]

[Event "Titled Tuesday Blitz August 22 Early 2023"]
[White "Veiga, Jose Francisco R P Neves"]
[Black "Gheorghiu, Calin"]
[WhiteFideId "1930087"]
[BlackFideId "1200305"]
[WhiteElo "2649"]
[BlackElo "2390"]
[Result "0-1"]
[Round "1"]
[TimeControl "180+1"]
[Date "2023.08.22"]
[WhiteClock "0:00:11"]
[BlackClock "0:00:12"]
[Board "130"]

1. e4 {[%clk 0:02:49]}  c6 {[%clk 0:02:59]} 2. Nc3 {[%clk 0:02:48]}  d5 {[%clk 0:02:59]} 3. d4 {[%clk 0:02:49]}  dxe4 {[%clk 0:02:57]} 4. Nxe4 {[%clk 0:02:50]}  Nf6 {[%clk 0:02:57]} 5. Nxf6+ {[%clk 0:02:49]}  exf6 {[%clk 0:02:56]} 6. c3 {[%clk 0:02:32]}  Bd6 {[%clk 0:02:52]} 7. Bd3 {[%clk 0:02:32]}  Qc7 {[%clk 0:02:51]} 8. Qc2 {[%clk 0:02:32]}  h6 {[%clk 0:02:46]} 9. Ne2 {[%clk 0:02:27]}  O-O {[%clk 0:02:43]} 10. h3 {[%clk 0:02:27]}  b6 {[%clk 0:02:38]} 11. O-O {[%clk 0:02:26]}  c5 {[%clk 0:02:36]} 12. Be3 {[%clk 0:02:25]}  Bb7 {[%clk 0:02:25]} 13. Be4 {[%clk 0:02:22]}  Nd7 {[%clk 0:02:24]} 14. Rad1 {[%clk 0:02:20]}  Rfe8 {[%clk 0:02:18]} 15. Bxb7 {[%clk 0:02:19]}  Qxb7 {[%clk 0:02:18]} 16. dxc5 {[%clk 0:02:18]}  Bxc5 {[%clk 0:02:15]} 17. Qf5 {[%clk 0:02:11]}  Ne5 {[%clk 0:02:03]} 18. Bxc5 {[%clk 0:02:11]}  bxc5 {[%clk 0:01:59]} 19. Rd2 {[%clk 0:02:06]}  Rad8 {[%clk 0:01:56]} 20. Rfd1 {[%clk 0:01:56]}  Rxd2 {[%clk 0:01:48]} 21. Rxd2 {[%clk 0:01:57]}  Nc4 {[%clk 0:01:29]} 22. Rd7 {[%clk 0:01:56]}  Qxb2 {[%clk 0:01:28]} 23. Ng3 {[%clk 0:01:55]}  Qxc3 {[%clk 0:01:18]} 24. Qxc5 {[%clk 0:01:53]}  Qe1+ {[%clk 0:00:51]} 25. Kh2 {[%clk 0:01:52]}  Ne5 {[%clk 0:00:52]} 26. Rxa7 {[%clk 0:01:47]}  Nd3 {[%clk 0:00:21]} 27. Qc7 {[%clk 0:01:41]}  Rf8 {[%clk 0:00:21]} 28. f3 {[%clk 0:01:33]}  Qd2 {[%clk 0:00:15]} 29. Qd6 {[%clk 0:01:17]}  Qe3 {[%clk 0:00:11]} 30. Re7 {[%clk 0:01:16]}  Ne5 {[%clk 0:00:10]} 31. Kh1 {[%clk 0:00:51]}  Qe1+ {[%clk 0:00:06]} 32. Kh2 {[%clk 0:00:52]}  Qe3 {[%clk 0:00:06]} 33. Nf1 {[%clk 0:00:12]}  Qc1 {[%clk 0:00:05]} 34. Kg1 {[%clk 0:00:10]}  Nc4 {[%clk 0:00:04]} 35. Qd5 {[%clk 0:00:06]}  Ne5 {[%clk 0:00:03]} 36. Re6 {[%clk 0:00:05]}  Qf4 {[%clk 0:00:03]} 37. Re7 {[%clk 0:00:05]}  Rc8 {[%clk 0:00:03]} 38. Rd7 {[%clk 0:00:03]}  Rc1 {[%clk 0:00:04]} 39. Rd8+ {[%clk 0:00:03]}  Kh7 {[%clk 0:00:04]} 40. Qe4+ {[%clk 0:00:03]}  Qxe4 {[%clk 0:00:05]} 41. fxe4 {[%clk 0:00:04]}  Ra1 {[%clk 0:00:05]} 42. Rd2 {[%clk 0:00:03]}  Nc4 {[%clk 0:00:05]} 43. Re2 {[%clk 0:00:03]}  Nd6 {[%clk 0:00:04]} 44. Kf2 {[%clk 0:00:04]}  Rc1 {[%clk 0:00:04]} 45. Nd2 {[%clk 0:00:04]}  Rc2 {[%clk 0:00:04]} 46. Nf3 {[%clk 0:00:04]}  Nxe4+ {[%clk 0:00:03]} 47. Ke3 {[%clk 0:00:04]}  Rxe2+ {[%clk 0:00:04]} 48. Kxe2 {[%clk 0:00:05]}  Nc3+ {[%clk 0:00:05]} 49. Ke3 {[%clk 0:00:05]}  Nxa2 {[%clk 0:00:06]} 50. g4 {[%clk 0:00:06]}  Nb4 {[%clk 0:00:06]} 51. Ke4 {[%clk 0:00:06]}  Nc6 {[%clk 0:00:07]} 52. Kd5 {[%clk 0:00:05]}  Ne7+ {[%clk 0:00:07]} 53. Ke4 {[%clk 0:00:04]}  Ng6 {[%clk 0:00:08]} 54. Nd4 {[%clk 0:00:02]}  Kg8 {[%clk 0:00:08]} 55. Nf5 {[%clk 0:00:03]}  Kf8 {[%clk 0:00:08]} 56. Ne3 {[%clk 0:00:04]}  Ne7 {[%clk 0:00:08]} 57. Nd5 {[%clk 0:00:04]}  Nxd5 {[%clk 0:00:08]} 58. Kxd5 {[%clk 0:00:05]}  Ke7 {[%clk 0:00:09]} 59. Kc6 {[%clk 0:00:06]}  Ke6 {[%clk 0:00:09]} 60. Kc7 {[%clk 0:00:07]}  Ke5 {[%clk 0:00:10]} 61. Kd8 {[%clk 0:00:08]}  Kf4 {[%clk 0:00:10]} 62. Ke7 {[%clk 0:00:09]}  Kg3 {[%clk 0:00:11]} 63. Kxf7 {[%clk 0:00:09]}  Kxh3 {[%clk 0:00:11]} 64. Kxg7 {[%clk 0:00:10]}  Kxg4 {[%clk 0:00:12]} 65. Kxf6 {[%clk 0:00:11]}  h5 {[%clk 0:00:12]} 0-1


[Site "https://www.chess.com"]

[Event "Titled Tuesday Blitz August 22 Early 2023"]
[White "Spichkin, Alexander"]
[Black "Nasir, Zehn"]
[WhiteFideId "4144074"]
[BlackFideId "2613239"]
[WhiteElo "2382"]
[BlackElo "2645"]
[Result "0-1"]
[Round "1"]
[TimeControl "180+1"]
[Date "2023.08.22"]
[WhiteClock "0:00:53"]
[BlackClock "0:00:34"]
[Board "131"]

1. f4 {[%clk 0:03:00]}  f5 {[%clk 0:02:56]} 2. e4 {[%clk 0:02:59]}  fxe4 {[%clk 0:02:53]} 3. d3 {[%clk 0:02:59]}  d5 {[%clk 0:02:48]} 4. dxe4 {[%clk 0:02:58]}  dxe4 {[%clk 0:02:47]} 5. Qxd8+ {[%clk 0:02:58]}  Kxd8 {[%clk 0:02:47]} 6. Nc3 {[%clk 0:02:59]}  Nf6 {[%clk 0:02:47]} 7. Be3 {[%clk 0:02:54]}  c6 {[%clk 0:02:42]} 8. O-O-O+ {[%clk 0:02:54]}  Kc7 {[%clk 0:02:41]} 9. Nge2 {[%clk 0:02:54]}  Bg4 {[%clk 0:02:37]} 10. h3 {[%clk 0:02:53]}  Bxe2 {[%clk 0:02:37]} 11. Bxe2 {[%clk 0:02:52]}  Nbd7 {[%clk 0:02:32]} 12. g4 {[%clk 0:02:52]}  e6 {[%clk 0:02:32]} 13. g5 {[%clk 0:02:52]}  Nd5 {[%clk 0:02:32]} 14. Bd4 {[%clk 0:02:41]}  Bd6 {[%clk 0:02:25]} 15. Nxd5+ {[%clk 0:02:23]}  exd5 {[%clk 0:02:20]} 16. Rdf1 {[%clk 0:02:23]}  Rhg8 {[%clk 0:02:19]} 17. Bg4 {[%clk 0:02:16]}  c5 {[%clk 0:01:55]} 18. Bc3 {[%clk 0:02:13]}  d4 {[%clk 0:01:53]} 19. Be1 {[%clk 0:02:13]}  Rgf8 {[%clk 0:01:50]} 20. f5 {[%clk 0:02:10]}  Ne5 {[%clk 0:01:44]} 21. Be2 {[%clk 0:02:05]}  Rf7 {[%clk 0:01:40]} 22. Bh5 {[%clk 0:01:58]}  Rff8 {[%clk 0:01:33]} 23. Kd1 {[%clk 0:01:45]}  g6 {[%clk 0:01:31]} 24. fxg6 {[%clk 0:01:39]}  hxg6 {[%clk 0:01:30]} 25. Be2 {[%clk 0:01:38]}  Rxf1 {[%clk 0:01:28]} 26. Rxf1 {[%clk 0:01:37]}  Rf8 {[%clk 0:01:28]} 27. Rf6 {[%clk 0:01:35]}  Rxf6 {[%clk 0:01:24]} 28. gxf6 {[%clk 0:01:35]}  Kd7 {[%clk 0:01:24]} 29. Bg4+ {[%clk 0:01:20]}  Nxg4 {[%clk 0:01:18]} 30. hxg4 {[%clk 0:01:20]}  Bf4 {[%clk 0:00:58]} 31. b4 {[%clk 0:01:15]}  c4 {[%clk 0:00:51]} 32. b5 {[%clk 0:01:11]}  Ke6 {[%clk 0:00:49]} 33. Bh4 {[%clk 0:01:07]}  g5 {[%clk 0:00:47]} 34. Bf2 {[%clk 0:01:07]}  e3 {[%clk 0:00:46]} 35. Be1 {[%clk 0:01:07]}  Kxf6 {[%clk 0:00:47]} 36. Ke2 {[%clk 0:01:07]}  Ke6 {[%clk 0:00:43]} 37. Bb4 {[%clk 0:01:07]}  Kd5 {[%clk 0:00:41]} 38. Kf3 {[%clk 0:01:06]}  Bd6 {[%clk 0:00:38]} 39. Be1 {[%clk 0:01:04]}  Bc5 {[%clk 0:00:37]} 40. a4 {[%clk 0:01:03]}  d3 {[%clk 0:00:36]} 41. cxd3 {[%clk 0:01:03]}  cxd3 {[%clk 0:00:37]} 42. Bc3 {[%clk 0:01:02]}  Kc4 {[%clk 0:00:35]} 43. Bf6 {[%clk 0:00:53]}  e2 {[%clk 0:00:34]} 0-1


[Site "https://www.chess.com"]

[Event "Titled Tuesday Blitz August 22 Early 2023"]
[White "Sipila, Vilka"]
[Black "Manukian, Artak"]
[WhiteFideId "505455"]
[BlackFideId "13301373"]
[WhiteElo "2639"]
[BlackElo "2380"]
[Result "0-1"]
[Round "1"]
[TimeControl "180+1"]
[Date "2023.08.22"]
[WhiteClock "0:00:00"]
[BlackClock "0:00:11"]
[Board "134"]

1. Nc3 {[%clk 0:03:00]}  c5 {[%clk 0:02:59]} 2. Nf3 {[%clk 0:02:58]}  Nc6 {[%clk 0:02:59]} 3. d4 {[%clk 0:02:54]}  cxd4 {[%clk 0:02:58]} 4. Nxd4 {[%clk 0:02:55]}  g6 {[%clk 0:02:58]} 5. e4 {[%clk 0:02:48]}  Bg7 {[%clk 0:02:58]} 6. Be3 {[%clk 0:02:48]}  Nf6 {[%clk 0:02:57]} 7. Be2 {[%clk 0:02:47]}  O-O {[%clk 0:02:56]} 8. O-O {[%clk 0:02:48]}  d5 {[%clk 0:02:56]} 9. Nxc6 {[%clk 0:02:44]}  bxc6 {[%clk 0:02:55]} 10. Bf3 {[%clk 0:02:34]}  e6 {[%clk 0:02:35]} 11. Bd4 {[%clk 0:02:32]}  Bb7 {[%clk 0:02:29]} 12. exd5 {[%clk 0:02:20]}  cxd5 {[%clk 0:02:27]} 13. Na4 {[%clk 0:02:20]}  Qa5 {[%clk 0:02:16]} 14. Nc5 {[%clk 0:02:17]}  Bc6 {[%clk 0:02:06]} 15. Re1 {[%clk 0:02:16]}  Rfc8 {[%clk 0:02:00]} 16. c3 {[%clk 0:02:02]}  Nd7 {[%clk 0:01:56]} 17. Bxg7 {[%clk 0:01:24]}  Kxg7 {[%clk 0:01:57]} 18. Nd3 {[%clk 0:01:08]}  Bb5 {[%clk 0:01:47]} 19. Nf4 {[%clk 0:00:46]}  Qb6 {[%clk 0:01:28]} 20. a4 {[%clk 0:00:39]}  Bc4 {[%clk 0:01:22]} 21. a5 {[%clk 0:00:35]}  Qc7 {[%clk 0:01:14]} 22. g3 {[%clk 0:00:27]}  Re8 {[%clk 0:00:56]} 23. b3 {[%clk 0:00:16]}  Ba6 {[%clk 0:00:54]} 24. c4 {[%clk 0:00:15]}  Bb7 {[%clk 0:00:49]} 25. cxd5 {[%clk 0:00:16]}  exd5 {[%clk 0:00:45]} 26. Rxe8 {[%clk 0:00:16]}  Rxe8 {[%clk 0:00:45]} 27. Bxd5 {[%clk 0:00:17]}  Nf6 {[%clk 0:00:42]} 28. Rc1 {[%clk 0:00:15]}  Qb8 {[%clk 0:00:37]} 29. Bxb7 {[%clk 0:00:15]}  Qxb7 {[%clk 0:00:38]} 30. Qd3 {[%clk 0:00:14]}  Rc8 {[%clk 0:00:34]} 31. Rxc8 {[%clk 0:00:13]}  Qxc8 {[%clk 0:00:35]} 32. Qd4 {[%clk 0:00:13]}  Qc1+ {[%clk 0:00:24]} 33. Kg2 {[%clk 0:00:13]}  Qc6+ {[%clk 0:00:24]} 34. Kg1 {[%clk 0:00:13]}  Qc1+ {[%clk 0:00:23]} 35. Kg2 {[%clk 0:00:14]}  Qc6+ {[%clk 0:00:23]} 36. f3 {[%clk 0:00:14]}  Qc2+ {[%clk 0:00:20]} 37. Kh3 {[%clk 0:00:14]}  Qxb3 {[%clk 0:00:20]} 38. Qxa7 {[%clk 0:00:01]}  Qxf3 {[%clk 0:00:18]} 39. Qd4 {[%clk 0:00:00]}  g5 {[%clk 0:00:11]} 0-1


[Site "https://www.chess.com"]

[Event "Titled Tuesday Blitz August 22 Early 2023"]
[White "Kekic, Armin"]
[Black "Itgelt, Khuyagtsogt"]
[WhiteFideId "14401274"]
[BlackFideId "4902912"]
[WhiteElo "2380"]
[BlackElo "2638"]
[Result "0-1"]
[Round "1"]
[TimeControl "180+1"]
[Date "2023.08.22"]
[WhiteClock "0:00:12"]
[BlackClock "0:00:55"]
[Board "135"]

1. e4 {[%clk 0:03:00]}  e6 {[%clk 0:02:58]} 2. d4 {[%clk 0:03:00]}  d5 {[%clk 0:02:59]} 3. exd5 {[%clk 0:03:01]}  exd5 {[%clk 0:02:59]} 4. Bf4 {[%clk 0:03:01]}  Bd6 {[%clk 0:02:47]} 5. Bxd6 {[%clk 0:03:01]}  Qxd6 {[%clk 0:02:48]} 6. Bd3 {[%clk 0:03:01]}  Ne7 {[%clk 0:02:48]} 7. Nf3 {[%clk 0:03:02]}  Nbc6 {[%clk 0:02:49]} 8. O-O {[%clk 0:03:01]}  O-O {[%clk 0:02:46]} 9. Nbd2 {[%clk 0:03:00]}  Bf5 {[%clk 0:02:45]} 10. Bxf5 {[%clk 0:02:55]}  Nxf5 {[%clk 0:02:46]} 11. c3 {[%clk 0:02:56]}  a6 {[%clk 0:02:38]} 12. Qc2 {[%clk 0:02:54]}  g6 {[%clk 0:02:32]} 13. a4 {[%clk 0:02:50]}  Rfe8 {[%clk 0:02:30]} 14. Rfe1 {[%clk 0:02:50]}  Qf6 {[%clk 0:02:26]} 15. Rxe8+ {[%clk 0:02:43]}  Rxe8 {[%clk 0:02:25]} 16. Re1 {[%clk 0:02:43]}  Rxe1+ {[%clk 0:02:21]} 17. Nxe1 {[%clk 0:02:44]}  Nd6 {[%clk 0:02:22]} 18. Nd3 {[%clk 0:02:37]}  Qf5 {[%clk 0:02:18]} 19. Nf3 {[%clk 0:02:21]}  Nc4 {[%clk 0:02:09]} 20. b3 {[%clk 0:02:09]}  Nb2 {[%clk 0:02:04]} 21. Nfe1 {[%clk 0:01:30]}  Nxd3 {[%clk 0:02:00]} 22. Qxd3 {[%clk 0:01:28]}  Qf4 {[%clk 0:01:44]} 23. Qe3 {[%clk 0:01:24]}  Qxe3 {[%clk 0:01:44]} 24. fxe3 {[%clk 0:01:25]}  Na5 {[%clk 0:01:45]} 25. b4 {[%clk 0:01:20]}  Nc4 {[%clk 0:01:44]} 26. Kf2 {[%clk 0:01:18]}  Nb2 {[%clk 0:01:44]} 27. a5 {[%clk 0:01:15]}  Nd1+ {[%clk 0:01:44]} 28. Kf3 {[%clk 0:01:04]}  Nxc3 {[%clk 0:01:45]} 29. Nd3 {[%clk 0:01:04]}  b6 {[%clk 0:01:26]} 30. Kf4 {[%clk 0:00:41]}  f6 {[%clk 0:01:23]} 31. g4 {[%clk 0:00:32]}  g5+ {[%clk 0:01:04]} 32. Kf5 {[%clk 0:00:30]}  Kf7 {[%clk 0:01:04]} 33. Nf2 {[%clk 0:00:19]}  Nb5 {[%clk 0:00:55]} 34. Ne4 {[%clk 0:00:12]} 0-1


[Site "https://www.chess.com"]

[Event "Titled Tuesday Blitz August 22 Early 2023"]
[White "Labussiere, Yago"]
[Black "Frolyanov, Dmitry"]
[WhiteFideId "2186969"]
[BlackFideId "4151976"]
[WhiteElo "2375"]
[BlackElo "2636"]
[Result "1/2-1/2"]
[Round "1"]
[TimeControl "180+1"]
[Date "2023.08.22"]
[WhiteClock "0:00:21"]
[BlackClock "0:00:17"]
[Board "137"]

1. c4 {[%clk 0:03:00]}  Nf6 {[%clk 0:02:30]} 2. Nc3 {[%clk 0:02:59]}  e6 {[%clk 0:02:19]} 3. e4 {[%clk 0:02:59]}  d5 {[%clk 0:02:18]} 4. e5 {[%clk 0:02:59]}  d4 {[%clk 0:02:18]} 5. exf6 {[%clk 0:03:00]}  dxc3 {[%clk 0:02:18]} 6. bxc3 {[%clk 0:03:01]}  Qxf6 {[%clk 0:02:18]} 7. Bd3 {[%clk 0:03:01]}  Bd6 {[%clk 0:02:14]} 8. Nf3 {[%clk 0:02:56]}  O-O {[%clk 0:02:13]} 9. O-O {[%clk 0:02:56]}  Nc6 {[%clk 0:02:10]} 10. Be4 {[%clk 0:02:53]}  Ne5 {[%clk 0:02:08]} 11. d4 {[%clk 0:02:49]}  Nxf3+ {[%clk 0:02:05]} 12. Qxf3 {[%clk 0:02:46]}  Qxf3 {[%clk 0:02:04]} 13. Bxf3 {[%clk 0:02:47]}  Rb8 {[%clk 0:02:02]} 14. c5 {[%clk 0:02:40]}  Be7 {[%clk 0:02:02]} 15. Bf4 {[%clk 0:02:40]}  Bd8 {[%clk 0:02:02]} 16. Rab1 {[%clk 0:02:36]}  b6 {[%clk 0:02:01]} 17. Rfc1 {[%clk 0:02:13]}  Ba6 {[%clk 0:01:59]} 18. c4 {[%clk 0:02:07]}  Rc8 {[%clk 0:01:45]} 19. c6 {[%clk 0:02:02]}  Be7 {[%clk 0:01:45]} 20. d5 {[%clk 0:01:59]}  exd5 {[%clk 0:01:38]} 21. Bxd5 {[%clk 0:01:57]}  Bd6 {[%clk 0:01:34]} 22. Bxd6 {[%clk 0:01:23]}  cxd6 {[%clk 0:01:35]} 23. Rc3 {[%clk 0:01:12]}  Rc7 {[%clk 0:01:35]} 24. Re1 {[%clk 0:01:09]}  Bc8 {[%clk 0:01:33]} 25. Rce3 {[%clk 0:01:05]}  Be6 {[%clk 0:01:23]} 26. Rd1 {[%clk 0:00:52]}  Rd8 {[%clk 0:01:08]} 27. Red3 {[%clk 0:00:49]}  Bc8 {[%clk 0:01:04]} 28. Re3 {[%clk 0:00:48]}  Kf8 {[%clk 0:01:03]} 29. f4 {[%clk 0:00:46]}  Re8 {[%clk 0:01:02]} 30. Rxe8+ {[%clk 0:00:38]}  Kxe8 {[%clk 0:01:03]} 31. Kf2 {[%clk 0:00:39]}  Kd8 {[%clk 0:01:02]} 32. h3 {[%clk 0:00:36]}  Re7 {[%clk 0:01:02]} 33. g4 {[%clk 0:00:36]}  Kc7 {[%clk 0:01:02]} 34. Re1 {[%clk 0:00:29]}  Rxe1 {[%clk 0:00:57]} 35. Kxe1 {[%clk 0:00:30]}  f6 {[%clk 0:00:57]} 36. Kf2 {[%clk 0:00:29]}  h5 {[%clk 0:00:37]} 37. Kf3 {[%clk 0:00:26]}  hxg4+ {[%clk 0:00:37]} 38. hxg4 {[%clk 0:00:27]}  g5 {[%clk 0:00:36]} 39. f5 {[%clk 0:00:23]}  Ba6 {[%clk 0:00:22]} 40. a4 {[%clk 0:00:23]}  Bc8 {[%clk 0:00:22]} 41. Ke4 {[%clk 0:00:23]}  a5 {[%clk 0:00:21]} 42. Kd4 {[%clk 0:00:22]}  Ba6 {[%clk 0:00:20]} 43. Be4 {[%clk 0:00:20]}  Bc8 {[%clk 0:00:18]} 44. Bd5 {[%clk 0:00:20]}  Ba6 {[%clk 0:00:17]} 45. Be4 {[%clk 0:00:21]}  Bc8 {[%clk 0:00:17]} 46. Bd5 {[%clk 0:00:21]} 1/2-1/2


[Site "https://www.chess.com"]

[Event "Titled Tuesday Blitz August 22 Early 2023"]
[White "Subelj, Jan"]
[Black "Buscar, Michael"]
[WhiteFideId "14618583"]
[BlackFideId "2603616"]
[WhiteElo "2633"]
[BlackElo "2370"]
[Result "1-0"]
[Round "1"]
[TimeControl "180+1"]
[Date "2023.08.22"]
[WhiteClock "0:01:32"]
[BlackClock "0:00:03"]
[Board "140"]

1. Nc3 {[%clk 0:03:00]}  Nf6 {[%clk 0:02:56]} 2. Nf3 {[%clk 0:02:57]}  c5 {[%clk 0:02:52]} 3. d4 {[%clk 0:02:52]}  cxd4 {[%clk 0:02:49]} 4. Nxd4 {[%clk 0:02:53]}  Nc6 {[%clk 0:02:50]} 5. g3 {[%clk 0:02:48]}  Qb6 {[%clk 0:02:46]} 6. Nb3 {[%clk 0:02:43]}  Ng4 {[%clk 0:02:35]} 7. e3 {[%clk 0:02:42]}  d6 {[%clk 0:02:33]} 8. Bg2 {[%clk 0:02:41]}  g6 {[%clk 0:02:30]} 9. O-O {[%clk 0:02:40]}  Bg7 {[%clk 0:02:31]} 10. Nd5 {[%clk 0:02:39]}  Qd8 {[%clk 0:02:27]} 11. c3 {[%clk 0:02:34]}  O-O {[%clk 0:02:26]} 12. e4 {[%clk 0:02:33]}  Nf6 {[%clk 0:02:17]} 13. Nxf6+ {[%clk 0:02:32]}  Bxf6 {[%clk 0:02:17]} 14. Bh6 {[%clk 0:02:33]}  Bg7 {[%clk 0:02:11]} 15. Qd2 {[%clk 0:02:31]}  Be6 {[%clk 0:02:10]} 16. Nd4 {[%clk 0:02:28]}  Nxd4 {[%clk 0:02:05]} 17. Bxg7 {[%clk 0:02:26]}  Kxg7 {[%clk 0:02:04]} 18. cxd4 {[%clk 0:02:22]}  f6 {[%clk 0:01:58]} 19. d5 {[%clk 0:02:18]}  Bd7 {[%clk 0:01:49]} 20. h4 {[%clk 0:02:18]}  Qb6 {[%clk 0:01:44]} 21. Rac1 {[%clk 0:02:14]}  Rac8 {[%clk 0:01:42]} 22. h5 {[%clk 0:02:13]}  a5 {[%clk 0:01:15]} 23. h6+ {[%clk 0:02:03]}  Kf7 {[%clk 0:01:13]} 24. Kh2 {[%clk 0:02:03]}  Qb4 {[%clk 0:01:07]} 25. Rc3 {[%clk 0:01:52]}  Rxc3 {[%clk 0:01:02]} 26. bxc3 {[%clk 0:01:53]}  Qc4 {[%clk 0:00:59]} 27. f4 {[%clk 0:01:53]}  Rc8 {[%clk 0:00:51]} 28. Rf3 {[%clk 0:01:50]}  Bg4 {[%clk 0:00:46]} 29. Re3 {[%clk 0:01:50]}  b5 {[%clk 0:00:39]} 30. e5 {[%clk 0:01:50]}  b4 {[%clk 0:00:31]} 31. cxb4 {[%clk 0:01:45]}  axb4 {[%clk 0:00:31]} 32. Qe1 {[%clk 0:01:40]}  Qc1 {[%clk 0:00:23]} 33. e6+ {[%clk 0:01:36]}  Ke8 {[%clk 0:00:19]} 34. Qxc1 {[%clk 0:01:36]}  Rxc1 {[%clk 0:00:18]} 35. Rb3 {[%clk 0:01:36]}  Rc4 {[%clk 0:00:18]} 36. a3 {[%clk 0:01:36]}  Bd1 {[%clk 0:00:15]} 37. Rxb4 {[%clk 0:01:36]}  Rxb4 {[%clk 0:00:15]} 38. axb4 {[%clk 0:01:37]}  Kd8 {[%clk 0:00:14]} 39. Kh3 {[%clk 0:01:36]}  Bc2 {[%clk 0:00:13]} 40. g4 {[%clk 0:01:35]}  Kc7 {[%clk 0:00:13]} 41. Kg3 {[%clk 0:01:33]}  Kb6 {[%clk 0:00:13]} 42. Bf1 {[%clk 0:01:33]}  Bb3 {[%clk 0:00:13]} 43. Bd3 {[%clk 0:01:32]}  Bxd5 {[%clk 0:00:07]} 44. Bxg6 {[%clk 0:01:32]}  Bxe6 {[%clk 0:00:07]} 45. Bxh7 {[%clk 0:01:33]}  Kb5 {[%clk 0:00:03]} 46. Bd3+ {[%clk 0:01:32]} 1-0


[Site "https://www.chess.com"]